[Event "January 9 Late 2024"]
[Site "https://www.chess.com"]
[Date "2024.01.09"]
[Round "9"]
[White "Sowa, Ryan"]
[Black "Bok, Benjamin"]
[Result "1-0"]
[Board "34"]
[TimeControl "180+1"]
[WhiteFideId "30901693"]
[BlackFideId "1017063"]
[WhiteElo "2599"]
[BlackElo "2926"]
[WhiteTeam "USA"]
[BlackTeam "NED"]
[WhiteClock "0:00:12"]
[BlackClock "0:00:07"]

1. Nf3 {[%clk 0:03:00]}  d5 {[%clk 0:02:54]} 2. b3 {[%clk 0:03:01]}  Bf5 {[%clk 0:02:52]} 3. Bb2 {[%clk 0:03:01]}  e6 {[%clk 0:02:51]} 4. c4 {[%clk 0:03:00]}  Nf6 {[%clk 0:02:49]} 5. g3 {[%clk 0:03:00]}  Be7 {[%clk 0:02:47]} 6. Bg2 {[%clk 0:03:00]}  O-O {[%clk 0:02:47]} 7. O-O {[%clk 0:03:00]}  h6 {[%clk 0:02:47]} 8. d3 {[%clk 0:03:00]}  Bh7 {[%clk 0:02:46]} 9. Nbd2 {[%clk 0:03:00]}  a5 {[%clk 0:02:47]} 10. a3 {[%clk 0:03:00]}  c6 {[%clk 0:02:47]} 11. Qc2 {[%clk 0:03:01]}  Nbd7 {[%clk 0:02:46]} 12. Ne5 {[%clk 0:03:01]}  Bd6 {[%clk 0:02:36]} 13. Nxd7 {[%clk 0:03:01]}  Nxd7 {[%clk 0:02:37]} 14. Bc3 {[%clk 0:02:58]}  Qe7 {[%clk 0:02:35]} 15. Qb2 {[%clk 0:02:57]}  Nf6 {[%clk 0:02:34]} 16. Be5 {[%clk 0:02:42]}  Rfe8 {[%clk 0:02:25]} 17. Rfb1 {[%clk 0:02:32]}  Bg6 {[%clk 0:02:10]} 18. Nf3 {[%clk 0:02:29]}  Bh5 {[%clk 0:02:07]} 19. h3 {[%clk 0:02:07]}  Bxf3 {[%clk 0:02:01]} 20. Bxf3 {[%clk 0:02:08]}  Bxe5 {[%clk 0:01:57]} 21. Qxe5 {[%clk 0:02:08]}  Nd7 {[%clk 0:01:56]} 22. Qb2 {[%clk 0:02:08]}  Qd6 {[%clk 0:01:56]} 23. cxd5 {[%clk 0:02:03]}  exd5 {[%clk 0:01:54]} 24. b4 {[%clk 0:01:59]}  axb4 {[%clk 0:01:51]} 25. axb4 {[%clk 0:01:47]}  g6 {[%clk 0:01:36]} 26. b5 {[%clk 0:01:44]}  c5 {[%clk 0:01:26]} 27. Rxa8 {[%clk 0:01:37]}  Rxa8 {[%clk 0:01:27]} 28. Ra1 {[%clk 0:01:37]}  Rxa1+ {[%clk 0:01:09]} 29. Qxa1 {[%clk 0:01:37]}  Nb6 {[%clk 0:01:06]} 30. h4 {[%clk 0:01:26]}  h5 {[%clk 0:01:03]} 31. Qc1 {[%clk 0:01:15]}  Kg7 {[%clk 0:00:54]} 32. Kg2 {[%clk 0:01:13]}  Nd7 {[%clk 0:00:49]} 33. Qc3+ {[%clk 0:01:09]}  Nf6 {[%clk 0:00:48]} 34. e4 {[%clk 0:00:52]}  dxe4 {[%clk 0:00:42]} 35. dxe4 {[%clk 0:00:53]}  Qe7 {[%clk 0:00:34]} 36. e5 {[%clk 0:00:51]}  Ng4 {[%clk 0:00:30]} 37. e6+ {[%clk 0:00:47]}  f6 {[%clk 0:00:19]} 38. Bxg4 {[%clk 0:00:40]}  hxg4 {[%clk 0:00:20]} 39. Qc4 {[%clk 0:00:41]}  Qd6 {[%clk 0:00:16]} 40. Qe4 {[%clk 0:00:38]}  Kf8 {[%clk 0:00:13]} 41. Qxg4 {[%clk 0:00:35]}  Qd5+ {[%clk 0:00:14]} 42. Kh2 {[%clk 0:00:32]}  Qd2 {[%clk 0:00:12]} 43. Kg2 {[%clk 0:00:28]}  Qd5+ {[%clk 0:00:11]} 44. Qf3 {[%clk 0:00:25]}  Qxe6 {[%clk 0:00:10]} 45. Qxb7 {[%clk 0:00:25]}  c4 {[%clk 0:00:10]} 46. Qb8+ {[%clk 0:00:15]}  Kg7 {[%clk 0:00:11]} 47. Qc7+ {[%clk 0:00:15]}  Kh6 {[%clk 0:00:11]} 48. b6 {[%clk 0:00:13]}  Qe4+ {[%clk 0:00:10]} 49. Kh2 {[%clk 0:00:14]}  Qd4 {[%clk 0:00:10]} 50. Qf4+ {[%clk 0:00:09]}  Qxf4 {[%clk 0:00:10]} 51. gxf4 {[%clk 0:00:10]}  c3 {[%clk 0:00:10]} 52. b7 {[%clk 0:00:11]}  c2 {[%clk 0:00:07]} 53. b8=Q {[%clk 0:00:12]} 1-0

[Event "January 9 Late 2024"]
[Site "https://www.chess.com"]
[Date "2024.01.09"]
[Round "9"]
[White "Mikaelyan, Arman"]
[Black "Mendez Fortes, Eduardo Jesus"]
[Result "1-0"]
[Board "38"]
[TimeControl "180+1"]
[WhiteFideId "13304852"]
[BlackFideId "3502376"]
[WhiteElo "2837"]
[BlackElo "2575"]
[WhiteTeam "ARM"]
[BlackTeam "CUB"]
[WhiteClock "0:00:18"]
[BlackClock "0:00:05"]

1. e4 {[%clk 0:03:00]}  c5 {[%clk 0:02:51]} 2. Nf3 {[%clk 0:03:00]}  d6 {[%clk 0:02:51]} 3. d4 {[%clk 0:02:55]}  cxd4 {[%clk 0:02:52]} 4. Nxd4 {[%clk 0:02:55]}  Nf6 {[%clk 0:02:50]} 5. Nc3 {[%clk 0:02:56]}  a6 {[%clk 0:02:50]} 6. Bc4 {[%clk 0:02:46]}  e6 {[%clk 0:02:49]} 7. f4 {[%clk 0:02:42]}  Be7 {[%clk 0:02:48]} 8. e5 {[%clk 0:02:23]}  dxe5 {[%clk 0:02:39]} 9. fxe5 {[%clk 0:02:24]}  Nd5 {[%clk 0:02:36]} 10. O-O {[%clk 0:02:07]}  Nxc3 {[%clk 0:02:12]} 11. bxc3 {[%clk 0:02:08]}  O-O {[%clk 0:02:12]} 12. Qh5 {[%clk 0:02:05]}  Nc6 {[%clk 0:01:55]} 13. Be3 {[%clk 0:01:58]}  g6 {[%clk 0:01:49]} 14. Nxc6 {[%clk 0:01:53]}  bxc6 {[%clk 0:01:45]} 15. Qh6 {[%clk 0:01:50]}  Qa5 {[%clk 0:01:38]} 16. Bd4 {[%clk 0:01:30]}  c5 {[%clk 0:01:35]} 17. Rf3 {[%clk 0:01:30]}  Bg5 {[%clk 0:00:33]} 18. Qxg5 {[%clk 0:01:28]}  cxd4 {[%clk 0:00:33]} 19. Rh3 {[%clk 0:01:16]}  h5 {[%clk 0:00:28]} 20. cxd4 {[%clk 0:00:59]}  Bb7 {[%clk 0:00:25]} 21. Rf1 {[%clk 0:00:47]}  Qd8 {[%clk 0:00:19]} 22. Qe3 {[%clk 0:00:36]}  Rc8 {[%clk 0:00:18]} 23. Bd3 {[%clk 0:00:36]}  Qd5 {[%clk 0:00:18]} 24. Qf2 {[%clk 0:00:24]}  Rcd8 {[%clk 0:00:16]} 25. c3 {[%clk 0:00:23]}  Rc8 {[%clk 0:00:15]} 26. Bb1 {[%clk 0:00:20]}  Rc7 {[%clk 0:00:13]} 27. Rg3 {[%clk 0:00:20]}  Rfc8 {[%clk 0:00:10]} 28. Bxg6 {[%clk 0:00:19]}  fxg6 {[%clk 0:00:08]} 29. Rxg6+ {[%clk 0:00:20]}  Rg7 {[%clk 0:00:05]} 30. Qf7+ {[%clk 0:00:18]} 1-0

[Event "January 9 Late 2024"]
[Site "https://www.chess.com"]
[Date "2024.01.09"]
[Round "9"]
[White "Van Dael, Siem"]
[Black "Bryakin, Mikhail"]
[Result "0-1"]
[Board "39"]
[TimeControl "180+1"]
[WhiteFideId "1049771"]
[BlackFideId "4165314"]
[WhiteElo "2571"]
[BlackElo "2834"]
[WhiteTeam "NED"]
[BlackTeam "SRB"]
[WhiteClock "0:00:00"]
[BlackClock "0:01:17"]

1. e4 {[%clk 0:03:00]}  a6 {[%clk 0:02:56]} 2. d4 {[%clk 0:02:53]}  b5 {[%clk 0:02:57]} 3. Bd3 {[%clk 0:02:48]}  Bb7 {[%clk 0:02:56]} 4. c3 {[%clk 0:02:47]}  e6 {[%clk 0:02:56]} 5. Nf3 {[%clk 0:02:47]}  c5 {[%clk 0:02:55]} 6. Nbd2 {[%clk 0:02:44]}  cxd4 {[%clk 0:02:54]} 7. cxd4 {[%clk 0:02:44]}  Nf6 {[%clk 0:02:55]} 8. O-O {[%clk 0:02:39]}  Nc6 {[%clk 0:02:55]} 9. a3 {[%clk 0:02:37]}  Be7 {[%clk 0:02:53]} 10. e5 {[%clk 0:02:34]}  Nd5 {[%clk 0:02:53]} 11. Ne4 {[%clk 0:02:35]}  f5 {[%clk 0:02:46]} 12. exf6 {[%clk 0:02:13]}  Nxf6 {[%clk 0:02:46]} 13. Nxf6+ {[%clk 0:02:14]}  gxf6 {[%clk 0:02:41]} 14. d5 {[%clk 0:02:10]}  exd5 {[%clk 0:02:38]} 15. Nh4 {[%clk 0:02:07]}  Qc7 {[%clk 0:02:32]} 16. Qh5+ {[%clk 0:02:02]}  Kd8 {[%clk 0:02:33]} 17. Re1 {[%clk 0:01:56]}  d4 {[%clk 0:02:24]} 18. Nf5 {[%clk 0:01:53]}  Bc5 {[%clk 0:02:20]} 19. Qh4 {[%clk 0:01:49]}  Rf8 {[%clk 0:02:16]} 20. Bh6 {[%clk 0:01:48]}  Rg8 {[%clk 0:02:11]} 21. Qxf6+ {[%clk 0:01:39]}  Kc8 {[%clk 0:02:11]} 22. Qf7 {[%clk 0:01:30]}  Rxg2+ {[%clk 0:02:09]} 23. Kf1 {[%clk 0:01:29]}  Qxh2 {[%clk 0:01:56]} 24. Nh4 {[%clk 0:00:39]}  Rg1+ {[%clk 0:01:43]} 25. Ke2 {[%clk 0:00:40]}  Rxe1+ {[%clk 0:01:43]} 26. Rxe1 {[%clk 0:00:40]}  Qxh4 {[%clk 0:01:42]} 27. Kd1 {[%clk 0:00:30]}  Qxh6 {[%clk 0:01:36]} 28. Bf5 {[%clk 0:00:31]}  Qd6 {[%clk 0:01:29]} 29. Qxh7 {[%clk 0:00:11]}  Kc7 {[%clk 0:01:28]} 30. Re6 {[%clk 0:00:10]}  Qd5 {[%clk 0:01:23]} 31. Rf6 {[%clk 0:00:07]}  Re8 {[%clk 0:01:19]} 32. Rf7 {[%clk 0:00:05]}  Re7 {[%clk 0:01:19]} 33. Rxe7 {[%clk 0:00:02]}  Nxe7 {[%clk 0:01:20]} 34. Bd3 {[%clk 0:00:01]}  Qh1+ {[%clk 0:01:18]} 35. Kc2 {[%clk 0:00:02]}  Qxh7 {[%clk 0:01:16]} 36. Bxh7 {[%clk 0:00:01]}  Kd6 {[%clk 0:01:17]} 37. Bd3 {[%clk 0:00:00]}  Ke5 {[%clk 0:01:17]} 0-1

[Event "January 9 Late 2024"]
[Site "https://www.chess.com"]
[Date "2024.01.09"]
[Round "9"]
[White "Zarnicki, Pablo"]
[Black "Lobanov, Sergei"]
[Result "1/2-1/2"]
[Board "40"]
[TimeControl "180+1"]
[WhiteFideId "100137"]
[BlackFideId "24183750"]
[WhiteElo "2570"]
[BlackElo "2832"]
[WhiteTeam "ARG"]
[BlackTeam "FID"]
[WhiteClock "0:00:09"]
[BlackClock "0:00:08"]

1. e4 {[%clk 0:03:00]}  c5 {[%clk 0:03:00]} 2. Nf3 {[%clk 0:03:00]}  Nc6 {[%clk 0:02:59]} 3. Bb5 {[%clk 0:03:00]}  e6 {[%clk 0:02:59]} 4. O-O {[%clk 0:02:59]}  Nge7 {[%clk 0:02:59]} 5. c3 {[%clk 0:02:56]}  a6 {[%clk 0:02:55]} 6. Be2 {[%clk 0:02:56]}  d5 {[%clk 0:02:55]} 7. exd5 {[%clk 0:02:56]}  Nxd5 {[%clk 0:02:54]} 8. d4 {[%clk 0:02:57]}  cxd4 {[%clk 0:02:53]} 9. cxd4 {[%clk 0:02:51]}  Be7 {[%clk 0:02:50]} 10. Nc3 {[%clk 0:02:51]}  O-O {[%clk 0:02:50]} 11. Re1 {[%clk 0:02:48]}  Bd7 {[%clk 0:02:25]} 12. Bc4 {[%clk 0:02:33]}  Nxc3 {[%clk 0:02:12]} 13. bxc3 {[%clk 0:02:31]}  Rc8 {[%clk 0:02:13]} 14. Bd3 {[%clk 0:02:25]}  Bf6 {[%clk 0:02:06]} 15. Qe2 {[%clk 0:02:22]}  Na5 {[%clk 0:01:55]} 16. Qe4 {[%clk 0:02:07]}  g6 {[%clk 0:01:55]} 17. Bd2 {[%clk 0:01:50]}  Nc4 {[%clk 0:01:54]} 18. Bh6 {[%clk 0:01:44]}  Re8 {[%clk 0:01:44]} 19. Qf4 {[%clk 0:01:28]}  Nb2 {[%clk 0:01:29]} 20. Be4 {[%clk 0:01:11]}  Na4 {[%clk 0:01:16]} 21. Bxb7 {[%clk 0:01:08]}  Rxc3 {[%clk 0:01:16]} 22. Bxa6 {[%clk 0:00:50]}  Nb6 {[%clk 0:01:16]} 23. Bb7 {[%clk 0:00:42]}  Bc6 {[%clk 0:00:53]} 24. Bxc6 {[%clk 0:00:40]}  Rxc6 {[%clk 0:00:53]} 25. Bg5 {[%clk 0:00:40]}  Bxg5 {[%clk 0:00:41]} 26. Nxg5 {[%clk 0:00:41]}  Re7 {[%clk 0:00:38]} 27. Qh4 {[%clk 0:00:37]}  f6 {[%clk 0:00:27]} 28. Ne4 {[%clk 0:00:36]}  Rf7 {[%clk 0:00:28]} 29. a4 {[%clk 0:00:33]}  Nd5 {[%clk 0:00:27]} 30. a5 {[%clk 0:00:32]}  Ra7 {[%clk 0:00:26]} 31. h3 {[%clk 0:00:24]}  Kg7 {[%clk 0:00:20]} 32. Nc5 {[%clk 0:00:24]}  Rxa5 {[%clk 0:00:18]} 33. Rxa5 {[%clk 0:00:16]}  Qxa5 {[%clk 0:00:18]} 34. Nxe6+ {[%clk 0:00:15]}  Kg8 {[%clk 0:00:19]} 35. Qe4 {[%clk 0:00:13]}  Rd6 {[%clk 0:00:06]} 36. Nc5 {[%clk 0:00:12]}  Kg7 {[%clk 0:00:02]} 37. h4 {[%clk 0:00:06]}  Qa7 {[%clk 0:00:02]} 38. Ne6+ {[%clk 0:00:07]}  Kg8 {[%clk 0:00:02]} 39. h5 {[%clk 0:00:07]}  gxh5 {[%clk 0:00:02]} 40. Qf5 {[%clk 0:00:06]}  Qf7 {[%clk 0:00:03]} 41. Nc5 {[%clk 0:00:05]}  Rd8 {[%clk 0:00:03]} 42. Rd1 {[%clk 0:00:05]}  Ne7 {[%clk 0:00:03]} 43. Qf4 {[%clk 0:00:05]}  Nc6 {[%clk 0:00:04]} 44. Ne4 {[%clk 0:00:03]}  Nxd4 {[%clk 0:00:03]} 45. Nxf6+ {[%clk 0:00:04]}  Kg7 {[%clk 0:00:04]} 46. Rxd4 {[%clk 0:00:04]}  Rxd4 {[%clk 0:00:04]} 47. Qxd4 {[%clk 0:00:04]}  Qxf6 {[%clk 0:00:05]} 48. Qxf6+ {[%clk 0:00:05]}  Kxf6 {[%clk 0:00:06]} 49. Kh2 {[%clk 0:00:05]}  Kg5 {[%clk 0:00:06]} 50. Kg3 {[%clk 0:00:06]}  Kf5 {[%clk 0:00:04]} 51. Kh4 {[%clk 0:00:06]}  Kg6 {[%clk 0:00:05]} 52. g3 {[%clk 0:00:07]}  Kh6 {[%clk 0:00:05]} 53. f3 {[%clk 0:00:07]}  Kg6 {[%clk 0:00:05]} 54. Kh3 {[%clk 0:00:08]}  Kg5 {[%clk 0:00:06]} 55. Kg2 {[%clk 0:00:08]}  h4 {[%clk 0:00:05]} 56. g4 {[%clk 0:00:07]}  Kf4 {[%clk 0:00:06]} 57. Kh3 {[%clk 0:00:07]}  Kxf3 {[%clk 0:00:06]} 58. Kxh4 {[%clk 0:00:08]}  Kf4 {[%clk 0:00:06]} 59. Kh5 {[%clk 0:00:09]}  Kg3 {[%clk 0:00:06]} 60. g5 {[%clk 0:00:08]}  Kf4 {[%clk 0:00:07]} 61. Kh6 {[%clk 0:00:08]}  Kg4 {[%clk 0:00:07]} 62. g6 {[%clk 0:00:09]}  hxg6 {[%clk 0:00:08]} 63. Kxg6 {[%clk 0:00:09]} 1/2-1/2

[Event "January 9 Late 2024"]
[Site "https://www.chess.com"]
[Date "2024.01.10"]
[Round "9"]
[White "Wafa, Hamed"]
[Black "Otero Marino, Alain"]
[Result "0-1"]
[Board "42"]
[TimeControl "180+1"]
[WhiteFideId "10628452"]
[BlackFideId "3524876"]
[WhiteElo "2792"]
[BlackElo "2569"]
[WhiteTeam "EGY"]
[BlackTeam "CUB"]
[WhiteClock "0:00:05"]
[BlackClock "0:00:50"]

1. e4 {[%clk 0:03:00]}  e6 {[%clk 0:02:58]} 2. d4 {[%clk 0:03:00]}  d5 {[%clk 0:02:58]} 3. e5 {[%clk 0:03:00]}  c5 {[%clk 0:02:58]} 4. c3 {[%clk 0:03:00]}  Nc6 {[%clk 0:02:57]} 5. Nf3 {[%clk 0:03:00]}  Bd7 {[%clk 0:02:57]} 6. Be2 {[%clk 0:03:00]}  cxd4 {[%clk 0:02:56]} 7. cxd4 {[%clk 0:03:01]}  Nge7 {[%clk 0:02:55]} 8. Na3 {[%clk 0:03:01]}  Nf5 {[%clk 0:02:55]} 9. Nc2 {[%clk 0:03:01]}  Nb4 {[%clk 0:02:52]} 10. Ne3 {[%clk 0:03:00]}  Nxe3 {[%clk 0:02:50]} 11. Bxe3 {[%clk 0:03:01]}  Rc8 {[%clk 0:02:49]} 12. O-O {[%clk 0:03:01]}  Nc2 {[%clk 0:02:48]} 13. Rc1 {[%clk 0:03:00]}  Nxe3 {[%clk 0:02:48]} 14. fxe3 {[%clk 0:03:01]}  Be7 {[%clk 0:02:47]} 15. Rxc8 {[%clk 0:02:58]}  Qxc8 {[%clk 0:02:43]} 16. Bd3 {[%clk 0:02:58]}  O-O {[%clk 0:02:43]} 17. Qd2 {[%clk 0:02:55]}  Qd8 {[%clk 0:02:41]} 18. Rc1 {[%clk 0:02:46]}  Qb6 {[%clk 0:02:39]} 19. h4 {[%clk 0:02:46]}  h6 {[%clk 0:02:38]} 20. h5 {[%clk 0:02:43]}  Rc8 {[%clk 0:02:37]} 21. Rxc8+ {[%clk 0:02:43]}  Bxc8 {[%clk 0:02:37]} 22. Bb1 {[%clk 0:02:43]}  f5 {[%clk 0:02:24]} 23. exf6 {[%clk 0:02:34]}  Bxf6 {[%clk 0:02:24]} 24. Qc2 {[%clk 0:02:33]}  Qc6 {[%clk 0:02:22]} 25. Qh7+ {[%clk 0:02:30]}  Kf8 {[%clk 0:02:22]} 26. Qh8+ {[%clk 0:02:29]}  Ke7 {[%clk 0:02:22]} 27. Bg6 {[%clk 0:02:23]}  Bd7 {[%clk 0:02:15]} 28. Qg8 {[%clk 0:02:14]}  Qc1+ {[%clk 0:02:13]} 29. Kh2 {[%clk 0:02:14]}  Qxe3 {[%clk 0:02:11]} 30. Qf7+ {[%clk 0:02:12]}  Kd6 {[%clk 0:02:10]} 31. Qf8+ {[%clk 0:02:11]}  Kc7 {[%clk 0:02:07]} 32. Qc5+ {[%clk 0:02:03]}  Bc6 {[%clk 0:02:03]} 33. b4 {[%clk 0:02:02]}  a6 {[%clk 0:02:01]} 34. a4 {[%clk 0:01:58]}  Qe2 {[%clk 0:01:54]} 35. b5 {[%clk 0:01:38]}  axb5 {[%clk 0:01:54]} 36. a5 {[%clk 0:01:38]}  b4 {[%clk 0:01:49]} 37. Qb6+ {[%clk 0:01:37]}  Kd7 {[%clk 0:01:46]} 38. Qxb4 {[%clk 0:01:37]}  Qb5 {[%clk 0:01:40]} 39. Qf8 {[%clk 0:01:33]}  Kc7 {[%clk 0:01:37]} 40. Ne5 {[%clk 0:01:25]}  Qxa5 {[%clk 0:01:32]} 41. Qf7+ {[%clk 0:01:23]}  Kb8 {[%clk 0:01:27]} 42. Qxe6 {[%clk 0:01:16]}  Qc7 {[%clk 0:01:23]} 43. Bf5 {[%clk 0:01:01]}  Ka7 {[%clk 0:01:18]} 44. Kh3 {[%clk 0:00:58]}  Qb6 {[%clk 0:01:18]} 45. Bg4 {[%clk 0:00:19]}  Ka8 {[%clk 0:01:06]} 46. Qc8+ {[%clk 0:00:16]}  Ka7 {[%clk 0:01:06]} 47. Bd7 {[%clk 0:00:14]}  Bxd7+ {[%clk 0:00:56]} 48. Nxd7 {[%clk 0:00:13]}  Qe6+ {[%clk 0:00:55]} 49. Kh2 {[%clk 0:00:13]}  Qd6+ {[%clk 0:00:54]} 50. Kh1 {[%clk 0:00:11]}  Bxd4 {[%clk 0:00:54]} 51. Qd8 {[%clk 0:00:09]}  Bb6 {[%clk 0:00:53]} 52. Qc8 {[%clk 0:00:07]}  Qc6 {[%clk 0:00:51]} 53. Qb8+ {[%clk 0:00:07]}  Ka6 {[%clk 0:00:51]} 54. Qa8+ {[%clk 0:00:08]}  Kb5 {[%clk 0:00:51]} 55. Qe8 {[%clk 0:00:06]}  Qc1+ {[%clk 0:00:50]} 56. Kh2 {[%clk 0:00:07]}  Bg1+ {[%clk 0:00:50]} 57. Kh3 {[%clk 0:00:06]}  Qe3+ {[%clk 0:00:51]} 58. Qxe3 {[%clk 0:00:06]}  Bxe3 {[%clk 0:00:51]} 59. Kg4 {[%clk 0:00:06]}  Bd4 {[%clk 0:00:50]} 60. Kf5 {[%clk 0:00:06]}  Bf6 {[%clk 0:00:50]} 61. g4 {[%clk 0:00:04]}  d4 {[%clk 0:00:50]} 62. Nxf6 {[%clk 0:00:01]}  gxf6 {[%clk 0:00:49]} 63. Kxf6 {[%clk 0:00:02]}  d3 {[%clk 0:00:49]} 64. g5 {[%clk 0:00:03]}  d2 {[%clk 0:00:50]} 65. gxh6 {[%clk 0:00:04]}  d1=Q {[%clk 0:00:50]} 66. Kg7 {[%clk 0:00:04]}  Qxh5 {[%clk 0:00:49]} 67. h7 {[%clk 0:00:05]}  Qxh7+ {[%clk 0:00:49]} 68. Kxh7 {[%clk 0:00:05]}  Kc4 {[%clk 0:00:50]} 0-1

[Event "January 9 Late 2024"]
[Site "https://www.chess.com"]
[Date "2024.01.09"]
[Round "9"]
[White "Tristan, Leonardo"]
[Black "Serban, Cristian-Stefan"]
[Result "1-0"]
[Board "43"]
[TimeControl "180+1"]
[WhiteFideId "113816"]
[BlackFideId "1241443"]
[WhiteElo "2760"]
[BlackElo "2563"]
[WhiteTeam "ARG"]
[BlackTeam "ROU"]
[WhiteClock "0:01:37"]
[BlackClock "0:00:01"]

1. d4 {[%clk 0:03:00]}  Nf6 {[%clk 0:02:59]} 2. Nf3 {[%clk 0:03:00]}  d5 {[%clk 0:03:00]} 3. Bf4 {[%clk 0:03:01]}  c5 {[%clk 0:02:58]} 4. e3 {[%clk 0:03:01]}  Nc6 {[%clk 0:02:58]} 5. c3 {[%clk 0:03:01]}  Qb6 {[%clk 0:02:58]} 6. Qc2 {[%clk 0:03:02]}  Bf5 {[%clk 0:02:56]} 7. dxc5 {[%clk 0:03:02]}  Bxc2 {[%clk 0:02:40]} 8. cxb6 {[%clk 0:03:03]}  axb6 {[%clk 0:02:40]} 9. Na3 {[%clk 0:03:04]}  Bf5 {[%clk 0:02:21]} 10. Nb5 {[%clk 0:03:02]}  Rc8 {[%clk 0:01:46]} 11. h3 {[%clk 0:02:05]}  h6 {[%clk 0:01:43]} 12. Be2 {[%clk 0:01:55]}  g5 {[%clk 0:01:40]} 13. Bh2 {[%clk 0:01:54]}  e6 {[%clk 0:01:38]} 14. Nbd4 {[%clk 0:01:44]}  Bg6 {[%clk 0:01:32]} 15. Bb5 {[%clk 0:01:42]}  Nd7 {[%clk 0:01:27]} 16. Nxc6 {[%clk 0:01:36]}  bxc6 {[%clk 0:01:27]} 17. Ba6 {[%clk 0:01:37]}  Rd8 {[%clk 0:00:41]} 18. Nd4 {[%clk 0:01:37]}  c5 {[%clk 0:00:31]} 19. Nc6 {[%clk 0:01:37]}  Ra8 {[%clk 0:00:29]} 20. Bb7 {[%clk 0:01:37]}  Ra4 {[%clk 0:00:01]} 21. Ne5 {[%clk 0:01:37]} 1-0

[Event "January 9 Late 2024"]
[Site "https://www.chess.com"]
[Date "2024.01.09"]
[Round "9"]
[White "Weetik, Vjacheslav"]
[Black "Tan, Ralph"]
[Result "0-1"]
[Board "46"]
[TimeControl "180+1"]
[WhiteFideId "4153472"]
[BlackFideId "30966590"]
[WhiteElo "2733"]
[BlackElo "2544"]
[WhiteTeam "RUS"]
[BlackTeam "USA"]
[WhiteClock "0:00:04"]
[BlackClock "0:00:10"]

1. e4 {[%clk 0:02:59]}  c6 {[%clk 0:02:59]} 2. d4 {[%clk 0:02:59]}  d5 {[%clk 0:02:59]} 3. e5 {[%clk 0:02:59]}  c5 {[%clk 0:02:59]} 4. Nf3 {[%clk 0:02:57]}  Nc6 {[%clk 0:02:58]} 5. c4 {[%clk 0:02:57]}  cxd4 {[%clk 0:02:53]} 6. Nxd4 {[%clk 0:02:57]}  e6 {[%clk 0:02:52]} 7. Nc3 {[%clk 0:02:57]}  Bb4 {[%clk 0:02:51]} 8. Nxc6 {[%clk 0:02:46]}  bxc6 {[%clk 0:02:50]} 9. Qg4 {[%clk 0:02:46]}  Ne7 {[%clk 0:02:48]} 10. Bd2 {[%clk 0:02:28]}  Ng6 {[%clk 0:02:34]} 11. cxd5 {[%clk 0:02:24]}  Bxc3 {[%clk 0:02:34]} 12. Bxc3 {[%clk 0:02:24]}  exd5 {[%clk 0:02:34]} 13. Qg3 {[%clk 0:02:20]}  O-O {[%clk 0:02:32]} 14. O-O-O {[%clk 0:02:00]}  c5 {[%clk 0:02:20]} 15. h4 {[%clk 0:01:48]}  d4 {[%clk 0:02:20]} 16. h5 {[%clk 0:01:46]}  Ne7 {[%clk 0:02:20]} 17. Bd2 {[%clk 0:01:23]}  Qd5 {[%clk 0:02:09]} 18. Bd3 {[%clk 0:01:14]}  Bf5 {[%clk 0:01:59]} 19. Bh6 {[%clk 0:01:08]}  g6 {[%clk 0:01:47]} 20. Bxf8 {[%clk 0:00:59]}  Rxf8 {[%clk 0:01:46]} 21. hxg6 {[%clk 0:00:59]}  fxg6 {[%clk 0:01:44]} 22. Qh4 {[%clk 0:00:55]}  Rf7 {[%clk 0:01:41]} 23. e6 {[%clk 0:00:55]}  Qxe6 {[%clk 0:01:38]} 24. Rde1 {[%clk 0:00:41]}  Qxa2 {[%clk 0:01:21]} 25. Bxf5 {[%clk 0:00:39]}  Nxf5 {[%clk 0:01:20]} 26. Re8+ {[%clk 0:00:38]}  Kg7 {[%clk 0:01:16]} 27. Qxh7+ {[%clk 0:00:38]}  Kf6 {[%clk 0:01:16]} 28. Qh8+ {[%clk 0:00:35]}  Kg5 {[%clk 0:01:10]} 29. Qe5 {[%clk 0:00:17]}  Qa1+ {[%clk 0:01:03]} 30. Kc2 {[%clk 0:00:17]}  Qa4+ {[%clk 0:01:01]} 31. Kb1 {[%clk 0:00:17]}  d3 {[%clk 0:00:55]} 32. Rc1 {[%clk 0:00:07]}  d2 {[%clk 0:00:41]} 33. f4+ {[%clk 0:00:08]}  Qxf4 {[%clk 0:00:41]} 34. Qxf4+ {[%clk 0:00:08]}  Kxf4 {[%clk 0:00:42]} 35. Rf1+ {[%clk 0:00:07]}  Kg5 {[%clk 0:00:38]} 36. Rd8 {[%clk 0:00:08]}  Nd6 {[%clk 0:00:20]} 37. Rd1 {[%clk 0:00:07]}  Ne4 {[%clk 0:00:17]} 38. Kc2 {[%clk 0:00:06]}  Rf2 {[%clk 0:00:16]} 39. Re8 {[%clk 0:00:06]}  Kf4 {[%clk 0:00:16]} 40. Kd3 {[%clk 0:00:06]}  Nf6 {[%clk 0:00:08]} 41. Re2 {[%clk 0:00:05]}  Rxe2 {[%clk 0:00:07]} 42. Kxe2 {[%clk 0:00:05]}  Ne4 {[%clk 0:00:08]} 43. Kd3 {[%clk 0:00:05]}  Nf2+ {[%clk 0:00:08]} 44. Kxd2 {[%clk 0:00:06]}  Nxd1 {[%clk 0:00:09]} 45. Kxd1 {[%clk 0:00:04]}  Kg3 {[%clk 0:00:10]} 0-1

[Event "January 9 Late 2024"]
[Site "https://www.chess.com"]
[Date "2024.01.09"]
[Round "9"]
[White "Martins, Vinicius Tine"]
[Black "Rozman, Levy"]
[Result "1-0"]
[Board "48"]
[TimeControl "180+1"]
[WhiteFideId "2112884"]
[BlackFideId "2039877"]
[WhiteElo "2523"]
[BlackElo "2715"]
[WhiteTeam "BRA"]
[BlackTeam "USA"]
[WhiteClock "0:00:12"]
[BlackClock "0:00:01"]

1. d4 {[%clk 0:03:00]}  d5 {[%clk 0:02:58]} 2. Nf3 {[%clk 0:02:59]}  Nf6 {[%clk 0:02:58]} 3. Bf4 {[%clk 0:02:59]}  e6 {[%clk 0:02:49]} 4. e3 {[%clk 0:02:58]}  c5 {[%clk 0:02:48]} 5. Nbd2 {[%clk 0:02:54]}  Nc6 {[%clk 0:02:45]} 6. c3 {[%clk 0:02:52]}  cxd4 {[%clk 0:02:42]} 7. exd4 {[%clk 0:02:52]}  Nh5 {[%clk 0:02:42]} 8. Bg3 {[%clk 0:02:50]}  g6 {[%clk 0:02:40]} 9. Be2 {[%clk 0:02:43]}  Bg7 {[%clk 0:02:39]} 10. Nh4 {[%clk 0:02:16]}  Nxg3 {[%clk 0:02:38]} 11. hxg3 {[%clk 0:02:15]}  Bd7 {[%clk 0:02:33]} 12. Nhf3 {[%clk 0:02:13]}  Rb8 {[%clk 0:02:25]} 13. a4 {[%clk 0:02:09]}  a6 {[%clk 0:02:25]} 14. O-O {[%clk 0:01:48]}  O-O {[%clk 0:02:23]} 15. b4 {[%clk 0:01:45]}  Qc7 {[%clk 0:02:20]} 16. Nb3 {[%clk 0:01:40]}  Ne7 {[%clk 0:02:15]} 17. Qd2 {[%clk 0:01:35]}  Nf5 {[%clk 0:02:11]} 18. a5 {[%clk 0:01:30]}  Rbc8 {[%clk 0:02:04]} 19. Nc5 {[%clk 0:01:30]}  Bc6 {[%clk 0:02:00]} 20. Bd3 {[%clk 0:01:27]}  Nd6 {[%clk 0:01:51]} 21. Rae1 {[%clk 0:01:25]}  Bb5 {[%clk 0:01:50]} 22. Ne5 {[%clk 0:01:16]}  Bxd3 {[%clk 0:01:48]} 23. Qxd3 {[%clk 0:01:15]}  Rfe8 {[%clk 0:01:44]} 24. f4 {[%clk 0:01:13]}  f5 {[%clk 0:01:31]} 25. g4 {[%clk 0:01:02]}  Ne4 {[%clk 0:01:29]} 26. g5 {[%clk 0:01:01]}  Bxe5 {[%clk 0:01:25]} 27. fxe5 {[%clk 0:00:54]}  Nxg5 {[%clk 0:01:20]} 28. g3 {[%clk 0:00:49]}  Ne4 {[%clk 0:01:19]} 29. Kg2 {[%clk 0:00:49]}  Qe7 {[%clk 0:01:07]} 30. Qe3 {[%clk 0:00:45]}  Rc7 {[%clk 0:00:41]} 31. Rh1 {[%clk 0:00:45]}  Qd8 {[%clk 0:00:31]} 32. Rh6 {[%clk 0:00:42]}  Rg7 {[%clk 0:00:27]} 33. Reh1 {[%clk 0:00:40]}  Qc8 {[%clk 0:00:28]} 34. Qf4 {[%clk 0:00:32]}  Nxc3 {[%clk 0:00:16]} 35. Qh4 {[%clk 0:00:23]}  Qc7 {[%clk 0:00:13]} 36. Qf6 {[%clk 0:00:19]}  Qe7 {[%clk 0:00:12]} 37. Rxh7 {[%clk 0:00:13]}  Rxh7 {[%clk 0:00:02]} 38. Qxg6+ {[%clk 0:00:13]}  Rg7 {[%clk 0:00:02]} 39. Qh5 {[%clk 0:00:12]}  Qf7 {[%clk 0:00:01]} 40. Qh8# {[%clk 0:00:12]} 1-0